bitfinex-derivatives/quotes_ETHF0:USTF0_20251003
["timestamp","ask_amount","ask_price","bid_price","bid_amount"]
[1759493296647,7.5987181,4482.8,4482.7,0.73067201]
[1759493297247,7.9201181,4482.8,4482.7,0.51357201]
[1759493298549,7.9201181,4482.8,4482.7,0.31067201]
[1759493299353,7.9201181,4482.8,4482.7,0.00247201]
[1759493299738,7.9201181,4482.8,4482.7,0.51357201]
[1759493300444,7.9201181,4482.8,4482.7,0.31067201]
[1759493300949,7.9201181,4482.8,4482.7,0.00247201]
[1759493302145,7.9201181,4482.8,4482.7,0.20537201]
[1759493302343,7.9201181,4482.8,4482.7,0.51357201]
[1759493302543,7.9201181,4482.8,4482.7,0.73067201]
[1759493302743,7.9201181,4482.8,4482.7,0.51357201]
[1759493303653,0.3214,4483.3,4482.8,0.3082]
[1759493303949,0.2158,4483.3,4483.2,0.7282]
[1759493304144,0.2158,4483.3,4483.2,0.9512]
[1759493304346,7.3764181,4483.3,4483.2,1.35241]
[1759493305048,7.3764181,4483.3,4483.2,0.9512]
[1759493305640,7.5987181,4483.3,4483.2,0.9512]
[1759493308550,7.3764181,4483.3,4483.2,0.9512]
[1759493310046,7.8877181,4483.3,4483.2,0.9512]
[1759493311358,0.7334,4483.2,4483.1,3.2078]
[1759493311553,7.8940181,4483.2,4483.1,3.4308]
[1759493311754,0.7334,4483.2,4483.1,3.4308]
[1759493314854,0.7334,4483.2,4482.7,0.00247201]
[1759493315044,11.1093181,4482.8,4482.7,0.00247201]
[1759493315249,11.1093181,4482.8,4482.7,0.22547201]
[1759493316151,11.1093181,4482.8,4482.4,0.3167]
[1759493316359,0.4317,4482.2,4482.1,0.52]
[1759493316655,0.7409,4482.2,4482.1,0.743]
[1759493317252,0.7409,4482.2,4482.1,0.74473549]
[1759493318252,0.7409,4482.2,4482.1,0.95623549]
[1759493318651,0.4317,4482.2,4482.1,1.35754549]
[1759493319662,0.4317,4482.2,4482.1,0.95623549]
[1759493322367,0.7409,4482.2,4482.1,0.95623549]
[1759493322866,0.4317,4482.2,4482.1,0.95623549]
[1759493323268,0.4317,4482.2,4482.1,2.15347459]
[1759493324063,3.2078,4482.5,4482.4,0.4148]
[1759493324269,10.3684181,4482.5,4482.4,0.9545]
[1759493324962,10.8001181,4482.5,4482.4,0.9545]
[1759493325167,10.8001181,4482.5,4482.4,0.223]
[1759493325168,11.1093181,4482.5,4482.4,0.223]
[1759493325364,11.2137181,4482.5,4482.4,0.223]
[1759493326159,11.1093181,4482.5,4482.4,0.743]
[1759493326670,10.8001181,4482.5,4482.4,0.9545]
[1759493327955,11.1093181,4482.5,4482.4,0.9545]
[1759493330665,11.1093181,4482.5,4482.4,0.743]
[1759493331364,11.1093181,4482.5,4482.4,0.5397]
[1759493331562,11.2137181,4482.5,4482.2,1.1972391]
[1759493331774,11.2137181,4482.5,4482.1,0.00173549]
[1759493331775,0.7409,4482.2,4482.1,0.00173549]
[1759493331982,7.9015181,4482.2,4482.1,0.00173549]
[1759493332272,0.7409,4482.2,4482.1,0.00173549]
[1759493333573,0.7409,4482.2,4481.5,3.3326]
[1759493333574,0.7409,4481.6,4481.5,0.3167]
[1759493333772,7.9015181,4481.6,4481.5,0.5397]
[1759493334466,7.9015181,4481.6,4481.5,0.54189008]
[1759493337171,7.9015181,4481.6,4481.5,0.00219008]
[1759493343976,7.9015181,4481.6,4480.8,0.3172]
[1759493344186,0.057,4482.0,4480.5,0.1301]
[1759493344187,0.7189,4480.9,4480.5,0.1301]
[1759493344376,0.7189,4480.9,4480.6,0.3172]
[1759493344678,3.2078,4481.1,4480.1,0.40148]
[1759493344679,0.4161,4480.2,4480.1,0.9497]
[1759493345077,0.41777319,4480.2,4480.1,0.95254091]
[1759493345570,0.72057319,4480.2,4480.1,0.95254091]
[1759493345775,0.72057319,4480.2,4480.1,0.72954091]
[1759493347176,0.72057319,4480.2,4479.8,0.223]
[1759493347177,0.7189,4479.9,4479.8,0.5194]
[1759493347475,4.32821,4479.9,4479.8,0.5194]
[1759493348180,4.32821,4479.9,4479.8,0.52103714]
[1759493348575,4.02541,4479.9,4479.8,0.72833714]
[1759493348778,3.60931,4479.9,4479.8,0.72833714]
[1759493349779,3.82231,4479.9,4479.8,0.72833714]
[1759493352078,4.02541,4479.9,4479.8,0.72833714]
[1759493352281,4.32821,4479.9,4479.8,0.72833714]
[1759493355686,4.32821,4479.9,4479.8,0.52103714]
[1759493355887,4.32821,4479.9,4479.8,0.31883714]
[1759493356584,4.32821,4479.9,4479.8,0.00163714]
[1759493356979,4.32821,4479.9,4479.1,0.0138353]
[1759493356980,1.12047,4479.2,4479.1,0.0138353]
[1759493357186,8.2810881,4479.2,4479.1,0.0138353]
[1759493357377,1.12047,4479.2,4479.1,0.0138353]
[1759493358085,1.12047,4479.2,4479.1,0.01568787]
[1759493358286,1.34447,4479.2,4479.1,0.01568787]
[1759493359389,1.34447,4479.2,4478.4,0.3172]
[1759493359390,1.12053,4478.5,4478.4,0.3172]
[1759493359986,1.12053,4478.5,4478.4,0.5194]
[1759493360183,8.2811481,4478.5,4478.4,0.3172]
[1759493360385,8.2811481,4478.5,4478.4,0.31939901]
[1759493360581,7.9783481,4478.5,4478.4,0.72889901]
[1759493361287,8.2811481,4478.5,4478.4,0.72889901]
[1759493362185,8.2811481,4478.5,4478.4,0.00219901]
[1759493362386,8.3855481,4478.5,4478.4,0.00219901]
[1759493363691,8.2811481,4478.5,4478.4,0.31939901]
[1759493363886,8.2811481,4478.5,4478.4,0.52159901]
[1759493365489,8.2811481,4478.5,4478.4,0.00219901]
[1759493365790,8.3855481,4478.5,4478.4,0.00219901]
[1759493371689,1.15218,4478.0,4477.9,0.24633215]
[1759493372291,8.3127981,4478.0,4477.9,0.76503215]
[1759493372692,8.3127981,4478.0,4477.9,0.76727649]
[1759493373492,8.3127981,4478.0,4477.9,0.54327649]
[1759493376589,7.9981981,4478.0,4477.9,0.75827649]
[1759493376785,8.3309981,4478.0,4477.9,0.54327649]
[1759493377493,8.3309981,4478.0,4477.9,0.32997649]
[1759493377691,8.3880981,4478.0,4477.9,0.02457649]
[1759493380988,8.3309981,4478.0,4477.9,0.54327649]
[1759493381393,8.3309981,4478.0,4477.9,0.32997649]
[1759493381594,8.3309981,4478.0,4477.9,0.02457649]
[1759493382296,8.3309981,4478.0,4477.9,0.32997649]
[1759493383001,8.3309981,4478.0,4477.9,0.02457649]
[1759493383596,8.3880981,4478.0,4477.9,0.02457649]
[1759493384202,8.3309981,4478.0,4477.9,0.32997649]
[1759493384603,8.3309981,4478.0,4477.9,0.54327649]
[1759493387000,8.3309981,4478.0,4477.9,0.32997649]
[1759493387210,8.3309981,4478.0,4477.9,0.02457649]
[1759493387404,8.3880981,4478.0,4477.9,0.02457649]
[1759493388501,8.3309981,4478.0,4477.9,0.32997649]
[1759493390609,8.3880981,4478.0,4477.9,0.02457649]
[1759493394615,8.3309981,4478.0,4477.9,0.54327649]
[1759493396513,0.4359,4478.0,4477.9,1.38396649]
[1759493396709,3.2078,4478.6,4478.1,1.00418]
[1759493397013,0.2102,4478.9,4478.8,1.13531]
[1759493398414,0.2102,4478.9,4478.8,2.33963917]
[1759493399417,3.418,4479.1,4479.0,1.25949]
[1759493399619,10.5786181,4479.1,4479.0,1.25949]
[1759493400511,3.2078,4479.1,4479.0,1.25949]
[1759493400714,3.20365944,4479.1,4479.0,7.46381917]
[1759493401126,3.41385944,4479.1,4479.0,7.46381917]
[1759493401312,3.41385944,4479.1,4479.0,6.25949]
[1759493404416,3.41385944,4479.1,4479.0,6.48349]
[1759493407224,3.41385944,4479.1,4479.0,6.25949]
[1759493407432,3.81543944,4479.1,4479.0,6.48349]
[1759493407723,3.81543944,4479.1,4479.0,6.25949]
[1759493408118,3.81543944,4479.1,4479.0,6.48349]
[1759493408727,3.41385944,4479.1,4479.0,6.48349]
[1759493412028,3.81543944,4479.1,4479.0,6.48349]
[1759493412423,3.41385944,4479.1,4479.0,6.48349]
[1759493413630,0.2181,4479.6,4479.5,0.40154]
[1759493413930,3.82905319,4480.2,4480.1,0.7508]
[1759493414124,3.82905319,4480.2,4480.1,0.9748]
[1759493414125,4.34455319,4480.2,4480.1,0.9748]
[1759493414324,3.63467319,4480.2,4480.1,0.9748]
[1759493414528,3.42757319,4480.2,4480.1,0.9748]
[1759493415030,0.00167319,4480.2,4480.1,0.9748]
[1759493420933,0.00167319,4480.2,4480.1,1.37629]
[1759493427338,0.2143,4481.1,4481.0,0.8833]
[1759493427533,3.4221,4481.3,4481.2,0.4325]
[1759493427730,3.4221,4481.3,4481.2,0.9842]
[1759493428037,11.1089181,4481.3,4481.2,0.9842]
[1759493428235,11.11049402,4481.3,4481.2,0.76263895]
[1759493428436,11.11049402,4481.3,4481.2,0.98663895]
[1759493429338,10.80019402,4481.3,4481.2,0.98663895]
[1759493429539,10.80019402,4481.3,4481.2,1.38802895]
[1759493429741,3.20937592,4481.3,4481.2,1.38802895]
[1759493430738,3.42367592,4481.3,4481.2,1.38802895]
[1759493431332,0.21587592,4481.3,4481.2,1.38802895]
[1759493433739,0.43327592,4481.3,4481.2,1.38802895]
[1759493435141,0.21587592,4481.3,4481.2,1.38802895]
[1759493437046,3.4198,4481.9,4481.8,1.13044]
[1759493437337,3.4198,4481.9,4481.8,1.35344]
[1759493437935,3.42189165,4481.9,4481.8,1.35344]
[1759493438338,0.21409165,4481.9,4481.8,1.35344]
[1759493439339,0.21409165,4481.9,4481.8,0.9521]
[1759493439540,0.74359165,4481.9,4481.8,0.9521]
[1759493440842,0.74359165,4481.9,4481.8,1.35344]
[1759493441141,0.74359165,4481.9,4481.8,1.13044]
[1759493441342,0.74359165,4481.9,4481.8,1.35344]
[1759493441639,0.74359165,4481.9,4481.8,0.9521]
[1759493442448,0.74359165,4481.9,4481.8,1.35344]
[1759493442943,0.00209165,4481.9,4481.8,1.35344]
[1759493443535,3.2078,4482.5,4481.8,0.9521]
[1759493443741,3.4198,4482.5,4482.4,1.13038]
[1759493443931,3.4198,4482.5,4482.4,1.35338]
[1759493444139,10.5804181,4482.5,4482.4,1.35338]
[1759493444843,10.37030995,4482.5,4482.4,1.35338]
[1759493446141,3.20969185,4482.5,4482.4,1.35338]
[1759493448440,0.00189185,4482.5,4482.4,1.35338]
[1759493453753,0.00189185,4482.5,4482.4,4.56118]
[1759493461968,0.00189185,4482.5,4482.4,45.36118]
[1759493463868,0.00189185,4482.5,4482.4,4.56118]
[1759493464266,0.00189185,4482.5,4482.4,5.76550917]
[1759493465766,7.87660995,4482.5,4482.4,0.3128]
[1759493466068,7.87660995,4482.5,4482.4,0.223]
[1759493466269,7.98400995,4482.5,4482.4,0.223]
[1759493467772,7.87660995,4482.5,4482.4,1.14548]
[1759493468071,7.57320995,4482.5,4482.4,1.36398]
[1759493468270,7.37010995,4482.5,4482.4,1.36398]
[1759493469361,7.87660995,4482.5,4482.4,0.9627]
[1759493469557,7.87660995,4482.5,4482.4,0.3176]
[1759493469759,7.87660995,4482.5,4482.4,0.5406]
[1759493470965,7.87660995,4482.5,4482.4,0.94188]
[1759493471166,7.87660995,4482.5,4482.4,1.14548]
[1759493471473,8.44711495,4482.5,4482.4,0.223]
[1759493472471,1.28649685,4482.5,4482.4,0.223]
[1759493472671,8.44711495,4482.5,4482.4,0.223]
[1759493478282,1.28649685,4482.5,4482.4,0.223]
[1759493478474,8.44711495,4482.5,4482.4,0.223]
[1759493479177,7.98400995,4482.5,4482.4,0.223]
[1759493483784,7.98400995,4482.5,4482.1,0.3176]
[1759493483984,0.7141,4482.1,4482.0,0.337]
[1759493484179,0.7141,4482.1,4482.0,0.56]
[1759493484382,7.8747181,4482.1,4482.0,0.56]
[1759493484678,7.8747181,4482.1,4482.0,0.8776]
[1759493487276,7.8747181,4482.1,4482.0,1.49741]
[1759493487491,7.8747181,4482.1,4482.0,1.27441]
[1759493487492,7.3682181,4482.1,4482.0,1.27441]
[1759493487688,7.3682181,4482.1,4482.0,1.49741]
[1759493487886,7.3682181,4482.1,4482.0,1.0961]
[1759493488281,7.9181181,4482.1,4482.0,1.0961]
[1759493490085,0.8224,4482.0,4481.9,1.20432917]
[1759493490290,0.8224,4482.0,4481.6,1.20432917]
[1759493490291,0.3335,4481.8,4481.6,1.20432917]
[1759493490490,0.765,4481.6,4481.5,1.52222917]
[1759493490690,0.765,4481.6,4481.5,1.74522917]
[1759493490883,7.9256181,4481.6,4481.5,1.96052917]
[1759493491490,7.5921181,4481.6,4481.5,2.30482917]
[1759493492392,7.9226181,4481.6,4481.5,2.30482917]
[1759493493885,7.9226181,4481.6,4481.5,1.96052917]
[1759493494291,7.9226181,4481.6,4481.5,0.7562]
[1759493495683,0.5364,4482.0,4481.9,0.2071]
[1759493495887,0.7475,4482.0,4481.9,0.9402]
[1759493496093,7.9081181,4482.0,4481.9,0.9402]
[1759493496294,7.9081181,4482.0,4481.9,0.7172]
[1759493496490,7.9081181,4482.0,4481.9,0.9402]
[1759493496991,7.9081181,4482.0,4481.9,0.223]
[1759493497293,7.9660181,4482.0,4481.9,0.223]
[1759493498386,0.417,4481.7,4481.6,1.20293391]
[1759493498591,7.9081181,4481.7,4481.6,1.73433391]
[1759493498793,0.7475,4481.7,4481.6,1.73433391]
[1759493499094,0.7475,4481.7,4481.6,0.5314]
[1759493499299,0.7475,4481.7,4481.6,0.7385]
[1759493499691,3.2078,4482.1,4482.0,0.6463]
[1759493499692,3.9553,4482.1,4482.0,0.6463]
[1759493499885,3.9553,4482.1,4482.0,0.7385]
[1759493500086,11.1159181,4482.1,4482.0,0.7385]
[1759493500696,0.7475,4481.8,4481.7,1.20304164]
[1759493500885,0.3305,4481.7,4481.6,1.20304164]
[1759493501085,7.5776181,4481.7,4481.6,0.223]
[1759493501288,0.7475,4481.7,4481.6,0.223]
[1759493501592,0.1083,4481.5,4481.3,1.20304164]
[1759493501797,0.7475,4481.3,4481.2,1.20548059]
[1759493502091,7.9081181,4481.3,4481.2,0.22543895]
[1759493503394,11.1159181,4481.3,4481.2,0.22543895]
[1759493507992,3.2078,4481.3,4481.2,0.94263895]
[1759493508495,3.4137,4481.3,4481.2,0.94263895]
[1759493511002,0.2059,4481.3,4481.2,0.94263895]
[1759493512389,0.2059,4481.3,4481.2,1.34401895]
[1759493512790,0.2059,4481.5,4481.4,1.11856]
[1759493513002,7.3665181,4481.5,4481.4,1.11856]
[1759493513492,7.3665181,4481.5,4481.4,0.7172]
[1759493514303,7.9081181,4481.5,4481.4,0.7172]
[1759493515901,7.5776181,4481.5,4481.4,0.7172]
[1759493516107,0.2059,4481.5,4481.4,1.11856]
[1759493516305,0.2059,4481.5,4481.4,0.7172]
[1759493516600,0.417,4481.5,4481.4,0.7172]
[1759493516801,0.7475,4481.5,4481.4,0.7172]
[1759493517906,0.7475,4481.5,4481.4,1.11856]
[1759493518106,0.417,4481.5,4481.4,1.11856]
[1759493518602,0.2059,4481.5,4481.4,1.11856]
[1759493518902,3.2078,4481.7,4481.2,0.22543895]
[1759493518903,3.4137,4481.7,4481.6,1.11854]
[1759493519103,3.4137,4481.7,4481.6,1.34154]
[1759493520708,3.4137,4481.7,4481.6,0.9402]
[1759493521008,3.9553,4481.7,4481.6,0.9402]
[1759493521204,3.9553,4481.7,4481.6,0.7385]
[1759493522105,3.9553,4481.7,4481.6,0.5314]
[1759493523409,3.9553,4481.7,4481.6,0.734]
[1759493523611,3.9553,4481.7,4481.6,0.223]
[1759493524210,3.9553,4481.7,4481.6,1.36964]
[1759493524405,3.4137,4481.7,4481.6,1.36964]
[1759493524610,0.2059,4481.7,4481.6,2.57268164]
[1759493525307,3.9544,4482.3,4482.2,0.5358]
[1759493525508,4.41842527,4482.3,4482.2,0.7588]
[1759493525712,11.57904337,4482.3,4482.2,0.7588]
[1759493526609,10.7847181,4482.3,4482.2,1.36959]
[1759493526904,11.1150181,4482.3,4482.2,1.36959]
[1759493527112,11.1150181,4482.3,4482.2,0.9683]
[1759493527307,11.1150181,4482.3,4482.2,0.5562]
[1759493527499,11.1150181,4482.3,4482.2,0.223]
[1759493527911,11.1150181,4482.3,4482.2,0.5562]
[1759493528811,11.1150181,4482.3,4482.2,0.7588]
[1759493529608,11.1150181,4482.3,4482.2,1.16009]
[1759493529905,7.9072181,4482.3,4482.2,1.16009]
[1759493530104,7.9072181,4482.3,4482.2,1.36959]
[1759493530512,7.9072181,4482.3,4482.2,0.9683]
[1759493532515,7.9072181,4482.3,4482.2,0.7588]
[1759493533218,7.9072181,4482.3,4482.2,0.5562]
[1759493533508,0.5232,4482.0,4481.8,1.20304164]
[1759493533708,0.5232,4482.0,4481.6,1.53624164]
[1759493533709,0.4163,4481.7,4481.6,1.53624164]
[1759493534015,0.7466,4481.7,4481.6,1.75924164]
[1759493534412,0.7466,4481.7,4481.6,2.16058164]
[1759493534610,0.7466,4481.7,4481.6,2.36318164]
[1759493534916,0.7466,4481.7,4481.6,2.57268164]
[1759493535215,0.7466,4481.7,4481.6,1.36964]
[1759493535410,0.2092,4482.0,4481.9,0.93712]
[1759493535715,3.2078,4482.3,4482.1,0.7453]
[1759493535716,7.5769181,4482.2,4482.1,0.7453]
[1759493535910,7.9072181,4482.2,4482.1,0.9683]
[1759493536110,0.7466,4482.2,4482.1,0.9683]
[1759493543019,0.7466,4482.2,4482.1,1.3696]
[1759493543616,0.4163,4482.2,4482.1,1.3696]
[1759493544214,0.2092,4482.2,4482.1,1.3696]
[1759493545418,0.2092,4482.2,4482.1,2.57102216]
[1759493547416,0.22199185,4482.5,4482.4,1.14227]
[1759493547616,0.22199185,4482.5,4482.4,1.36527]
[1759493547617,0.00189185,4482.5,4482.4,1.36527]
[1759493551123,0.00189185,4482.5,4482.4,4.57307]
[1759493551920,0.00189185,4482.5,4482.4,45.37307]
[1759493552723,0.00189185,4482.5,4482.4,4.57307]
[1759493558126,0.00189185,4482.5,4482.4,5.77434589]
[1759493559226,0.00189185,4482.5,4482.4,4.57307]
[1759493562132,0.21779185,4482.5,4482.4,3.9488]
[1759493562329,7.91690995,4482.5,4482.4,1.36527]
[1759493562728,7.59140995,4482.5,4482.4,1.36527]
[1759493568431,7.91690995,4482.5,4482.4,1.36527]
[1759493569030,7.59140995,4482.5,4482.4,1.36527]
[1759493569244,7.59140995,4482.5,4482.4,1.14227]
[1759493569433,7.59140995,4482.5,4482.4,1.36527]
[1759493570737,7.91690995,4482.5,4482.4,1.36527]
[1759493572638,0.00189185,4482.5,4482.4,6.36527]
[1759493584045,0.00189185,4482.5,4482.4,6.14227]
[1759493584252,0.00189185,4482.5,4482.4,1.36527]
[1759493584849,0.2177,4484.3,4484.2,1.16711]
[1759493585050,0.2177,4484.3,4484.2,1.39011]
[1759493585255,7.3783181,4484.3,4484.2,1.39011]
[1759493585850,7.1606181,4484.9,4484.6,0.5444]
[1759493586054,7.38106542,4484.9,4484.8,0.766]
[1759493586855,7.59516542,4484.9,4484.8,0.766]
[1759493588558,7.16336542,4484.9,4484.8,0.766]
[1759493591058,7.38106542,4484.9,4484.8,0.766]
[1759493591858,7.59516542,4484.9,4484.8,0.766]
[1759493592449,7.59516542,4484.9,4484.8,0.989]
[1759493592653,0.43454732,4484.9,4484.8,0.989]
[1759493594657,0.76414732,4484.9,4484.8,0.7785]
[1759493594863,0.76414732,4484.9,4484.8,0.5569]
[1759493595563,0.76414732,4484.9,4484.0,41.92712]
[1759493595564,0.7614,4483.6,4483.5,0.17393262]
[1759493595865,0.7614,4483.6,4483.5,0.7785]
[1759493596063,1.99191013,4483.6,4483.5,1.1133]
[1759493596365,3.2078,4484.1,4484.0,0.5555]
[1759493596366,0.7614,4484.1,4484.0,0.5555]
[1759493596564,0.7614,4484.1,4484.0,0.90494694]
[1759493596766,0.4318,4484.1,4484.0,1.11544694]
[1759493597059,0.4318,4484.1,4484.0,0.55904694]
[1759493597265,0.7614,4484.1,4484.0,0.55904694]
[1759493597457,0.7614,4484.1,4484.0,0.78064694]
[1759493597767,2.32151013,4484.1,4484.0,1.11544694]
[1759493597970,1.99191013,4484.1,4484.0,1.11544694]
[1759493598557,2.32151013,4484.1,4484.0,1.11544694]
[1759493598858,2.32151013,4484.1,4484.0,0.78064694]
[1759493599056,5.52931013,4484.1,4484.0,0.22514694]
[1759493599561,5.52931013,4484.1,4484.0,0.00214694]
[1759493599760,5.52931013,4484.1,4484.0,0.22514694]
[1759493601766,5.52931013,4484.1,4484.0,0.00214694]
[1759493602868,5.52931013,4484.1,4484.0,0.22514694]
[1759493606365,5.52931013,4484.1,4484.0,0.54754694]
[1759493607367,5.19971013,4484.1,4484.0,1.51467694]
[1759493607864,5.52121013,4484.1,4484.0,1.11354694]
[1759493608569,5.52121013,4484.1,4484.0,0.00214694]
[1759493608870,5.52121013,4484.1,4484.0,0.22514694]
[1759493616475,5.52121013,4484.1,4484.0,0.53594694]
[1759493619676,5.52121013,4484.1,4484.0,0.22514694]
[1759493620277,5.52121013,4484.1,4484.0,0.53594694]
[1759493622180,5.52121013,4484.1,4484.0,0.31294694]
[1759493622480,3.9611,4484.1,4484.0,0.53594694]
[1759493622781,5.52121013,4484.1,4484.0,0.53594694]
[1759493624576,5.52121013,4484.1,4484.0,1.48967694]
[1759493624868,3.4255,4484.1,4484.0,1.48967694]
[1759493625474,0.2177,4484.1,4484.0,1.48967694]
[1759493626287,0.2062,4484.4,4484.3,0.8315]
[1759493626579,0.2062,4484.4,4484.3,1.1423]
[1759493632585,3.2078,4484.7,4484.3,0.7412]
[1759493632781,0.00274732,4484.9,4484.8,0.7412]
[1759493633086,0.75114732,4484.9,4484.8,0.9642]
[1759493633284,0.41864732,4484.9,4484.8,0.9642]
[1759493633688,0.41864732,4484.9,4484.8,1.36526]
[1759493634482,0.00274732,4484.9,4484.8,1.36526]
[1759493637684,0.00274732,4484.9,4484.8,1.54685368]
[1759493641090,0.00274732,4484.9,4484.8,1.36526]
[1759493644393,0.22364732,4484.9,4484.8,1.36526]
[1759493645288,0.43894732,4484.9,4484.8,1.36526]
[1759493645494,0.75574732,4484.9,4484.8,0.7502]
[1759493645793,0.75574732,4484.9,4484.8,1.15126]
[1759493645994,0.75574732,4484.9,4484.8,1.37056]
[1759493646194,0.75574732,4484.9,4484.8,1.14756]
[1759493646195,0.43894732,4484.9,4484.8,1.14756]
[1759493646495,0.43894732,4484.9,4484.8,0.9695]
[1759493648094,0.43894732,4484.9,4484.8,1.37056]
[1759493648389,0.22364732,4484.9,4484.8,1.37056]
[1759493648594,0.00274732,4484.9,4484.8,1.37056]
[1759493649198,0.00274732,4484.9,4484.8,0.9695]
[1759493650197,0.00274732,4484.9,4484.8,1.37056]
[1759493650497,0.00274732,4484.9,4484.8,0.9695]
[1759493652596,0.00274732,4484.9,4484.8,1.14756]
[1759493652796,0.00274732,4484.9,4484.8,1.37056]
[1759493653696,0.00274732,4484.9,4484.8,0.9695]
[1759493654199,0.75574732,4484.9,4484.8,0.223]
[1759493654399,0.75574732,4484.9,4484.8,0.5324]
[1759493654597,0.75574732,4484.9,4484.8,0.7394]
[1759493656404,0.75574732,4484.9,4484.8,0.5164]
[1759493656592,0.75574732,4484.9,4484.8,0.9587]
[1759493657494,0.75574732,4484.9,4484.8,0.3094]
[1759493657699,0.75574732,4484.9,4484.8,0.5324]
[1759493657901,0.75574732,4484.9,4484.8,0.7394]
[1759493659000,0.75574732,4484.9,4484.8,0.5164]
[1759493659199,0.75574732,4484.9,4484.8,0.7394]
[1759493663398,0.75574732,4484.9,4484.8,0.5164]
[1759493663591,0.75574732,4484.9,4484.8,0.7394]
[1759493663896,0.75574732,4484.9,4484.8,0.5164]
[1759493664204,0.75574732,4484.9,4484.8,0.5324]
[1759493664797,0.75574732,4484.9,4484.8,0.7394]
[1759493664998,0.75574732,4484.9,4484.8,0.5164]
[1759493665297,0.75574732,4484.9,4484.8,0.7394]
[1759493668103,0.2088,4484.5,4484.4,1.52935242]
[1759493668299,0.4206,4484.2,4484.1,0.3315]
[1759493668602,0.4206,4484.2,4484.1,1.37262]
[1759493668999,0.4206,4484.2,4484.1,2.57047242]
[1759493669199,3.5232,4484.5,4484.1,2.57047242]
[1759493669393,1.56011013,4484.2,4484.1,2.23897242]
[1759493669798,3.2078,4484.5,4484.1,2.23897242]
[1759493670002,1.56011013,4484.2,4484.1,2.16935242]
[1759493670405,1.56011013,4484.2,4484.1,0.9715]
[1759493670609,3.4166,4484.5,4484.4,0.417]
[1759493670905,3.4166,4484.5,4484.4,0.7485]
[1759493671099,4.97671013,4484.5,4484.4,0.7485]
[1759493671606,5.18851013,4484.5,4484.4,0.7485]
[1759493671807,5.50391013,4484.5,4484.4,0.7485]
[1759493675508,5.50391013,4484.5,4484.4,0.536]
[1759493677407,5.50391013,4484.5,4484.4,0.3315]
[1759493677909,5.50391013,4484.5,4484.4,0.5443]
[1759493678406,5.18851013,4484.5,4484.4,0.7472]
[1759493678713,5.49171013,4484.5,4484.4,0.7472]
[1759493680109,5.49171013,4484.5,4484.4,0.5443]
[1759493683714,5.49171013,4484.5,4484.4,0.7472]
[1759493684714,5.49171013,4484.5,4484.4,0.5443]
[1759493685012,5.49171013,4484.5,4484.1,1.42085242]
[1759493685204,5.49171013,4484.5,4484.1,0.5297]
[1759493685205,1.96561013,4484.2,4484.1,0.5297]
[1759493685406,0.3032,4484.1,4484.0,1.19999936]
[1759493685606,2.74156152,4484.1,4484.0,0.00214694]
[1759493690118,1.18145139,4484.1,4484.0,0.00214694]
[1759493690414,2.74156152,4484.1,4484.0,0.00214694]
[1759493692118,2.96456152,4484.1,4484.0,0.00214694]
[1759493696219,2.43836152,4484.1,4484.0,0.85784694]
[1759493700834,2.74156152,4484.1,4484.0,0.72454694]
[1759493701029,2.74156152,4484.1,4484.0,0.52164694]
[1759493702734,2.74156152,4484.1,4484.0,0.65114694]
[1759493703527,2.74156152,4484.1,4484.0,0.87444694]
[1759493706333,2.43836152,4484.1,4484.0,0.87444694]
[1759493706834,2.43814897,4484.1,4484.0,0.87444694]
[1759493707334,2.76534897,4484.1,4484.0,0.87444694]
[1759493708434,2.76534897,4484.1,4484.0,0.52164694]
[1759493708636,2.76534897,4484.1,4484.0,0.30884694]
[1759493709532,2.76534897,4484.1,4484.0,0.51104694]
[1759493710834,2.76534897,4484.1,4484.0,0.00214694]
[1759493711832,0.3272,4483.3,4483.1,0.3061]
[1759493712140,0.4111,4483.0,4482.9,0.3061]
[1759493712330,2.29841013,4483.0,4482.9,0.3061]
[1759493712632,2.29841013,4483.0,4482.0,1.73013383]
[1759493712633,0.3272,4482.9,4482.0,1.73013383]
[1759493712841,0.205,4482.1,4482.0,1.26460274]
[1759493713137,0.7383,4482.1,4482.0,1.08629274]
[1759493713339,0.4111,4482.1,4482.0,1.08629274]
[1759493714837,3.2078,4482.3,4482.2,0.7316]
[1759493718337,3.2078,4482.3,4482.2,5.7316]
[1759493718536,3.2078,4482.9,4482.8,0.4255]
[1759493718735,3.2078,4482.9,4482.8,0.7316]
[1759493718736,3.6189,4482.9,4482.8,0.7316]
[1759493719034,3.9461,4482.9,4482.8,0.7316]
[1759493721439,3.4128,4482.9,4482.8,0.7316]
[1759493721741,3.6189,4482.9,4482.8,0.7316]
[1759493721937,3.9461,4482.9,4482.8,0.7316]
[1759493722243,3.6189,4482.9,4482.8,0.7316]
[1759493722442,3.9461,4482.9,4482.8,1.13284]
[1759493722843,3.6189,4482.9,4482.8,1.13284]
[1759493726537,3.9382,4482.9,4482.8,1.13284]
[1759493726743,3.2078,4482.9,4482.8,1.13284]
[1759493729343,0.2225,4483.3,4483.0,0.1256]
[1759493729546,3.2078,4483.5,4483.3,0.3114]
[1759493729743,3.4303,4483.5,4483.4,1.37578]
[1759493731842,3.2078,4483.5,4483.4,1.37578]
[1759493732350,3.4125,4483.5,4483.4,1.37578]
[1759493733050,3.9595,4483.5,4483.4,0.7516]
[1759493733244,4.0685,4483.5,4483.4,0.223]
[1759493734044,4.0685,4483.5,4483.1,0.3229]
[1759493734251,0.7517,4482.9,4482.8,0.72414]
[1759493734449,0.7517,4482.9,4482.8,0.94714]
[1759493734651,0.7517,4482.9,4482.8,1.16734]
[1759493734843,0.7517,4482.9,4482.8,1.38604]
[1759493738054,0.416,4482.9,4482.8,1.38604]
[1759493738956,0.7517,4483.4,4483.3,0.94429]
[1759493739156,2.31181013,4483.4,4483.3,1.16729]
[1759493739351,0.416,4483.4,4483.3,1.38599]
[1759493744055,0.7517,4483.4,4483.3,0.9848]
[1759493744254,0.3357,4483.3,4483.0,0.72412]
[1759493744454,1.89581013,4483.3,4483.1,0.5459]
[1759493744655,2.31181013,4483.2,4483.1,1.16731]
[1759493744856,0.7517,4483.2,4483.1,1.16731]
[1759493745051,0.416,4483.2,4483.1,1.38601]
[1759493745257,0.2047,4483.2,4483.1,1.38601]